bitfinex/quotes_SOLUSD_20241126
["timestamp","ask_amount","ask_price","bid_price","bid_amount"]
[1732604156827,23.776884,238.12,238.04,10.229]
[1732604157321,12.21285274,238.13,238.04,10.229]
[1732604157627,8.01345274,238.11,238.04,6.0281]
[1732604157813,11.85069238,238.11,238.04,6.0281]
[1732604158429,3.83723964,238.11,238.04,6.0281]
[1732604158634,8.03693964,238.11,238.04,6.0281]
[1732604160111,5.95849197,238.1,238.01,19.3814]
[1732604160438,136.6,238.13,238.08,8.01345274]
[1732604160612,136.6,238.2,238.12,8.01345274]
[1732604160813,136.6,238.21,238.18,8.01345274]
[1732604161019,8.01345274,238.25,238.18,8.01345274]
[1732604161430,140.797,238.26,238.2,8.01345274]
[1732604161634,140.797,238.26,238.12,15.1801]
[1732604161635,153.1765,238.29,238.22,8.01345274]
[1732604161927,138.1683682,238.29,238.23,8.01345274]
[1732604162113,6.08370964,238.31,238.25,8.01345274]
[1732604162114,142.68370964,238.31,238.25,8.01345274]
[1732604162323,1.5683682,238.28,238.26,12.50030938]
[1732604162908,1.5683682,238.28,238.25,12.50030938]
[1732604163112,1.5683682,238.3,238.25,12.50030938]
[1732604163316,6.14626975,238.3,238.24,12.50030938]
[1732604164337,18.64657913,238.3,238.23,12.50030938]
[1732604164542,20.0,238.28,238.24,12.50030938]
[1732604165237,3.13197263,238.29,238.25,12.50030938]
[1732604165731,23.13197263,238.29,238.25,12.50030938]
[1732604166237,39.82878201,238.29,238.22,12.50030938]
[1732604166427,3.01429712,238.28,238.22,12.50030938]
[1732604166631,15.5146065,238.28,238.21,12.50030938]
[1732604166923,3.13197263,238.27,238.21,12.50030938]
[1732604167245,15.63228201,238.27,238.2,12.50030938]
[1732604167440,3.01429712,238.26,238.2,12.50030938]
[1732604168935,19.82918201,238.27,238.25,12.50030938]
[1732604168936,3.13197263,238.27,238.25,12.50030938]
[1732604169137,16.69620938,238.33,238.26,12.50030938]
[1732604169343,6.14626975,238.32,238.26,12.50030938]
[1732604170020,6.14626975,238.32,238.26,12.50062209]
[1732604170222,22.84299184,238.32,238.24,12.50062209]
[1732604170422,21.27462364,238.32,238.24,12.50062209]
[1732604171241,36.27750609,238.31,238.24,12.50062209]
[1732604171435,36.27750609,238.31,238.23,15.9054]
[1732604171436,12.50062209,238.29,238.23,15.9054]
[1732604171629,1.5683682,238.29,238.23,28.40602209]
[1732604171828,4.7051046,238.29,238.23,28.40602209]
[1732604172044,12.50062209,238.27,238.2,12.50062209]
[1732604172225,3.00953335,238.26,238.19,12.50062209]
[1732604172538,6.14626975,238.26,238.19,12.50062209]
[1732604172842,18.64689184,238.26,238.18,12.50062209]
[1732604173217,22.84409184,238.26,238.18,12.50062209]
[1732604173414,22.84409184,238.26,238.2,12.50062209]
[1732604173415,6.14626975,238.26,238.2,12.50062209]
[1732604173642,6.14626975,238.26,238.21,12.50062209]
[1732604173823,6.14626975,238.26,238.22,12.50062209]
[1732604174527,10.34346975,238.26,238.2,12.50062209]
[1732604175142,6.14626975,238.26,238.22,12.50062209]
[1732604175644,136.6,238.29,238.25,12.50062209]
[1732604175842,4.1961,238.32,238.27,12.50062209]
[1732604176019,16.57130964,238.38,238.31,12.50062209]
[1732604176020,10.27870964,238.38,238.31,12.50062209]
[1732604176224,1.58194598,238.37,238.32,12.50062209]
[1732604176429,4.55753488,238.37,238.31,12.50062209]
[1732604177150,4.55753488,238.37,238.32,12.50062209]
[1732604177354,136.6,238.41,238.36,12.50062209]
[1732604177516,7.4338,238.45,238.39,12.50062209]
[1732604177716,7.4338,238.45,238.29,12.50062209]
[1732604177933,12.50062209,238.43,238.36,12.50062209]
[1732604178341,12.50062209,238.43,238.35,12.50062209]
[1732604178540,12.95762871,238.43,238.36,12.50062209]
[1732604178742,6.0252292,238.43,238.38,12.50062209]
[1732604178946,6.0252292,238.43,238.37,12.50062209]
[1732604179241,6.0252292,238.43,238.36,12.50062209]
[1732604179448,36.27750609,238.42,238.34,12.50062209]
[1732604180125,36.27750609,238.42,238.35,12.50062209]
[1732604180845,27.971184,238.42,238.32,4.1959]
[1732604181032,27.971184,238.42,238.35,12.50062209]
[1732604182335,27.971184,238.42,238.32,4.1959]
[1732604182336,27.971184,238.42,238.36,12.50062209]
[1732604183942,27.971184,238.42,238.35,12.50062209]
[1732604184930,20.0,238.39,238.27,14.6889]
[1732604185135,20.0,238.39,238.36,12.50062209]
[1732604185722,20.0,238.39,238.35,12.50062209]
[1732604186553,20.0,238.39,238.36,12.50062209]
[1732604187528,20.0,238.39,238.37,12.50062209]
[1732604188249,20.0,238.39,238.36,12.50062209]
[1732604188633,20.0,238.39,238.34,12.50062209]
[1732604188848,20.0,238.37,238.32,12.50062209]
[1732604189048,20.0,238.36,238.32,12.50062209]
[1732604189854,4.1946,238.41,238.35,12.50062209]
[1732604190158,136.6,238.42,238.39,12.50062209]
[1732604190445,136.6,238.42,238.41,12.50062209]
[1732604190649,4.1926,238.52,238.41,12.50062209]
[1732604190838,4.1926,238.52,238.36,6.3788]
[1732604191038,149.10062209,238.56,238.48,12.50062209]
[1732604191254,4.1923,238.54,238.48,12.50062209]
[1732604191952,4.1918,238.56,238.5,12.50062209]
[1732604192255,10.2170292,238.56,238.51,12.50062209]
[1732604192576,6.0252292,238.55,238.49,12.50062209]
[1732604193146,4.1921,238.54,238.49,12.50062209]
[1732604193333,20.0,238.52,238.49,12.50062209]
[1732604193735,20.0,238.52,238.48,12.50062209]
[1732604194160,20.0,238.52,238.47,12.50062209]
[1732604194555,20.0,238.48,238.39,4.1948]
[1732604194737,20.0,238.48,238.44,12.50062209]
[1732604195132,20.0,238.48,238.45,12.50062209]
[1732604195551,20.0,238.48,238.44,12.50062209]
[1732604196261,20.0,238.47,238.43,12.50062209]
[1732604196767,20.0,238.47,238.4,4.1945]
[1732604196768,20.0,238.45,238.4,12.50062209]
[1732604197066,23.776884,238.46,238.4,12.50062209]
[1732604197067,20.0,238.43,238.4,12.50062209]
[1732604197361,206.6,238.59,238.42,25.00124418]
[1732604197560,12.50062209,238.56,238.49,12.50062209]
[1732604197754,153.29252209,238.55,238.47,12.50062209]
[1732604199070,23.776884,238.54,238.47,12.50062209]
[1732604199757,20.0,238.51,238.47,12.50062209]
[1732604199962,4.1928,238.5,238.47,12.50062209]
[1732604200770,20.0,238.51,238.47,12.50062209]
[1732604201467,24.1927,238.51,238.47,12.50062209]
[1732604201875,20.0,238.46,238.41,12.50062209]
[1732604204052,24.1935,238.46,238.41,12.50062209]
[1732604207146,24.1935,238.46,238.38,4.1949]
[1732604207147,20.0,238.44,238.36,6.3788]
[1732604207346,20.0,238.42,238.37,12.50062209]
[1732604208768,20.0,238.4,238.35,12.50062209]
[1732604210165,20.0,238.4,238.37,12.50062209]
[1732604211074,24.1946,238.4,238.37,12.50062209]
[1732604212073,20.0,238.41,238.37,12.50062209]
[1732604212258,23.776884,238.42,238.37,12.50062209]
[1732604212259,20.0,238.39,238.37,12.50062209]
[1732604212781,20.0,238.39,238.36,12.50062209]
[1732604213575,24.1948,238.39,238.36,12.50062209]
[1732604214477,20.0,238.39,238.38,12.50062209]
[1732604216585,4.1946,238.4,238.36,12.50062209]
[1732604217563,149.10062209,238.45,238.34,15.8359]
[1732604217564,20.0,238.38,238.34,15.8359]
[1732604217770,20.0,238.38,238.37,12.50062209]
[1732604218881,4.1946,238.4,238.37,12.50062209]
[1732604219485,20.0,238.38,238.37,12.50062209]
[1732604220166,136.6,238.44,238.37,12.50062209]
[1732604220368,20.0,238.42,238.41,12.50062209]
[1732604220786,4.1937,238.46,238.41,12.50062209]
[1732604220958,4.1937,238.46,238.43,12.50062209]
[1732604221365,4.1937,238.46,238.45,12.50062209]
[1732604221578,136.6,238.5,238.45,12.50062209]
[1732604221785,4.193,238.49,238.45,12.50062209]
[1732604222474,4.1928,238.51,238.47,12.50062209]
[1732604222676,4.1928,238.51,238.49,12.50062209]
[1732604223491,4.1923,238.53,238.49,12.50062209]
[1732604224366,20.0,238.51,238.49,12.50062209]
[1732604224767,24.1928,238.51,238.49,12.50062209]
[1732604225489,10.0,238.62,238.5,12.50062209]
[1732604225490,4.1916,238.57,238.5,12.50062209]
[1732604225667,4.1916,238.57,238.52,12.50062209]
[1732604225867,4.1916,238.57,238.51,12.50062209]
[1732604226786,20.0,238.55,238.52,12.50062209]
[1732604226988,20.0,238.55,238.54,12.50062209]
[1732604227190,20.0,238.55,238.52,12.50062209]
[1732604227870,4.1916,238.57,238.52,12.50062209]
[1732604227871,24.1916,238.57,238.52,12.50062209]
[1732604228491,20.0,238.53,238.52,12.50062209]
[1732604228995,20.0,238.53,238.5,12.50062209]
[1732604230121,20.0,238.53,238.46,19.5866]
[1732604230122,20.0,238.53,238.52,12.50062209]
[1732604231297,4.1911,238.61,238.52,16.69302209]
[1732604231471,140.7906,238.63,238.58,12.50062209]
[1732604231675,4.1906,238.63,238.58,12.50062209]
[1732604232794,23.776884,238.62,238.58,12.50062209]
[1732604233485,20.0,238.61,238.58,12.50062209]
[1732604234582,24.191,238.61,238.58,12.50062209]
[1732604235300,20.0,238.61,238.58,12.50062209]
[1732604235480,24.1903,238.65,238.6,12.50062209]
[1732604235678,24.1903,238.65,238.62,12.50062209]
[1732604235896,24.1903,238.65,238.56,20.4822]
[1732604235897,20.0,238.66,238.64,12.50062209]
[1732604236082,4.1896,238.69,238.64,12.50062209]
[1732604236603,4.1891,238.71,238.64,12.50062209]
[1732604236782,140.7891,238.71,238.64,12.50062209]
[1732604237306,20.0,238.68,238.64,12.50062209]
[1732604237677,4.1898,238.67,238.64,12.50062209]
[1732604237873,24.1898,238.67,238.62,12.50062209]
[1732604238498,4.1898,238.67,238.62,12.50062209]
[1732604242404,4.1898,238.67,238.63,7.97601948]
[1732604244207,20.0,238.68,238.66,7.97601948]
[1732604244385,24.1897,238.68,238.66,7.97601948]
[1732604244902,27.965884,238.72,238.67,7.97601948]
[1732604245285,4.189,238.72,238.69,7.97601948]
[1732604245604,4.189,238.72,238.62,6.5539]
[1732604245780,4.189,238.72,238.67,7.97601948]
[1732604246301,4.1888,238.73,238.67,7.97601948]
[1732604246494,20.0,238.69,238.67,7.97601948]
[1732604247392,24.1896,238.69,238.67,7.97601948]
[1732604250617,20.0,238.71,238.65,16.3866]
[1732604250903,4.1879,238.78,238.7,7.97601948]
[1732604251080,4.1879,238.78,238.68,31.90407792]
[1732604251081,4.1879,238.78,238.74,7.97601948]
[1732604252213,20.0,238.78,238.74,7.97601948]
[1732604253511,4.1881,238.77,238.66,4.1899]
[1732604253688,4.1881,238.77,238.65,16.3866]
[1732604253689,43.776884,238.76,238.7,7.97601948]
[1732604255503,20.0,238.74,238.7,7.97601948]
[1732604255887,20.0,238.73,238.7,7.97601948]
[1732604256285,20.0,238.73,238.65,16.3866]
[1732604256596,20.0,238.73,238.68,7.97601948]
[1732604257401,4.189,238.72,238.68,7.97601948]
[1732604260616,4.189,238.72,238.65,16.3866]
[1732604260822,4.189,238.72,238.68,7.97601948]
[1732604262300,24.189,238.72,238.68,7.97601948]
[1732604263124,7.97601948,238.75,238.68,7.97601948]
[1732604263125,20.0,238.73,238.68,7.97601948]
[1732604266222,4.189,238.72,238.68,7.97601948]
[1732604268103,20.0,238.73,238.7,7.97601948]
[1732604268323,24.1881,238.77,238.72,7.97601948]
[1732604268528,4.1881,238.77,238.72,7.97601948]
[1732604269713,4.1881,238.77,238.7,7.97601948]
[1732604269921,20.0,238.75,238.7,7.97601948]
[1732604270904,4.1886,238.74,238.7,7.97601948]
[1732604271110,4.1886,238.74,238.72,7.97601948]
[1732604272219,4.1883,238.76,238.72,7.97601948]
[1732604274643,4.1883,238.76,238.7,7.97601948]
[1732604274806,4.1883,238.76,238.65,16.3866]
[1732604275004,20.0,238.75,238.69,7.97601948]
[1732604276003,4.1886,238.74,238.69,7.97601948]
[1732604277717,20.0,238.75,238.71,7.97601948]
[1732604277923,4.1881,238.77,238.71,7.97601948]
[1732604279735,20.0,238.76,238.66,4.1899]
[1732604279932,20.0,238.76,238.7,7.97601948]
[1732604280618,24.1881,238.77,238.74,7.97601948]
[1732604280828,4.1877,238.79,238.74,7.97601948]
[1732604281025,0.4959886,238.8,238.76,7.97601948]
[1732604281219,4.6835886,238.8,238.76,7.97601948]
[1732604283038,4.6835886,238.8,238.74,7.97601948]
[1732604283937,24.6835886,238.8,238.74,7.97601948]
[1732604285147,32.65960808,238.8,238.72,7.97601948]
[1732604285440,20.0,238.77,238.66,10.7894]
[1732604285617,20.0,238.77,238.71,7.97601948]
[1732604286008,20.0,238.77,238.73,7.97601948]
[1732604287539,24.1882,238.77,238.73,7.97601948]
[1732604288421,24.1882,238.77,238.75,7.97601948]
[1732604288825,4.1882,238.77,238.75,7.97601948]
[1732604289333,20.0,238.79,238.75,7.97601948]
[1732604289532,4.1879,238.78,238.75,7.97601948]
[1732604292241,4.1877,238.79,238.75,7.97601948]
[1732604293152,24.1877,238.79,238.75,7.97601948]
[1732604294743,24.1877,238.79,238.73,7.97601948]
[1732604295242,4.1877,238.79,238.73,7.97601948]
[1732604295442,4.1877,238.79,238.75,7.97601948]
[1732604295941,0.4959886,238.8,238.77,7.97601948]
[1732604298853,4.6835886,238.8,238.77,7.97601948]
[1732604299721,4.6835886,238.8,238.75,7.97601948]
[1732604300754,4.6835886,238.8,238.76,7.97601948]
[1732604309352,24.6835886,238.8,238.76,7.97601948]
[1732604310746,20.4959886,238.8,238.76,7.97601948]
[1732604310941,24.6836886,238.8,238.74,15.8249]
[1732604311141,4.6836886,238.8,238.75,7.97601948]
[1732604311432,20.0,238.79,238.74,7.97601948]
[1732604311653,20.0,238.79,238.76,7.97601948]
[1732604312346,4.6835886,238.8,238.76,7.97601948]
[1732604316976,4.6835886,238.8,238.69,15.8059]
[1732604317258,4.6835886,238.8,238.76,7.97601948]
[1732604319168,4.6835886,238.8,238.7,4.1893]
[1732604319462,4.6835886,238.8,238.75,7.97601948]
[1732604323335,4.6835886,238.8,238.75,7.47601948]
[1732604334759,20.0,238.78,238.73,7.97601948]
[1732604334955,20.0,238.78,238.69,19.9954]
[1732604335156,20.0,238.78,238.73,7.97601948]
[1732604335668,20.0,238.78,238.69,15.8059]
[1732604335869,4.1881,238.77,238.73,7.97601948]
[1732604337680,4.1881,238.77,238.74,7.97601948]
[1732604338789,4.1881,238.77,238.75,7.97601948]
[1732604340771,4.1881,238.77,238.74,7.97601948]
[1732604340969,0.4959886,238.8,238.76,7.97601948]
[1732604341173,20.0,238.78,238.76,7.97601948]
[1732604341588,24.6835886,238.8,238.7,4.1893]
[1732604341885,24.6835886,238.8,238.75,7.97601948]
[1732604342083,24.6835886,238.8,238.7,4.1893]
[1732604342385,24.6835886,238.8,238.75,7.97601948]
[1732604343183,24.6835886,238.8,238.69,19.9952]
[1732604343567,24.6835886,238.8,238.74,7.97601948]
[1732604343990,4.6835886,238.8,238.74,7.97601948]
[1732604344479,24.6835886,238.8,238.74,7.97601948]
[1732604351576,4.1879,238.78,238.74,7.97601948]
[1732604355595,4.1877,238.79,238.76,7.97601948]
[1732604355797,0.4959886,238.8,238.76,7.97601948]
[1732604358306,0.4959886,238.8,238.77,7.97601948]
[1732604358480,4.6835886,238.8,238.77,7.97601948]
[1732604359098,4.6835886,238.8,238.75,7.97601948]
[1732604360085,4.6835886,238.8,238.7,4.1892]
[1732604360399,4.6835886,238.8,238.75,7.97601948]
[1732604361715,4.6835886,238.8,238.7,4.1893]
[1732604361914,20.0,238.79,238.74,7.97601948]
[1732604363400,20.0,238.75,238.72,7.97601948]
[1732604363708,20.0,238.75,238.66,10.7892]
[1732604363881,20.0,238.75,238.72,7.97601948]
[1732604364806,24.1884,238.75,238.72,7.97601948]
[1732604365194,24.1884,238.75,238.67,4.1898]
[1732604365388,24.1884,238.75,238.72,7.97601948]
[1732604365586,20.0,238.75,238.72,7.97601948]
[1732604367395,24.1886,238.75,238.68,7.97601948]
[1732604368506,20.0,238.75,238.7,7.97601948]
[1732604368806,8.79763094,238.77,238.7,7.97601948]
[1732604368807,20.0,238.74,238.7,7.97601948]
[1732604369284,20.0,238.75,238.7,7.97601948]
[1732604370300,20.0,238.74,238.7,7.97601948]
[1732604371000,20.0,238.75,238.7,7.97601948]
[1732604371915,20.0,238.75,238.69,4.1895]
[1732604371916,20.0,238.75,238.69,7.97601948]
[1732604373816,20.0,238.75,238.64,15.9222]
[1732604374022,20.0,238.72,238.65,12.16621948]
[1732604374311,20.0,238.72,238.68,7.97601948]
[1732604378689,24.189,238.72,238.66,7.97601948]
[1732604378897,20.0,238.71,238.66,7.97601948]
[1732604382398,20.0,238.71,238.61,10.4771]
[1732604382595,20.0,238.71,238.65,7.97601948]
[1732604383528,7.97601948,238.7,238.6,4.1911]
[1732604383702,20.0,238.65,238.61,7.97601948]
[1732604384309,20.0,238.67,238.61,7.97601948]
[1732604386940,20.0,238.68,238.61,7.97601948]
[1732604387125,20.0,238.66,238.61,7.97601948]
[1732604388813,23.776884,238.71,238.61,7.97601948]
[1732604389014,20.0,238.67,238.61,12.16691948]
[1732604390263,20.0,238.7,238.65,7.97601948]
[1732604390415,4.1888,238.74,238.68,7.97601948]
[1732604390745,12.16481948,238.74,238.67,7.97601948]
[1732604391736,20.0,238.72,238.67,7.97601948]
[1732604392434,4.1888,238.74,238.68,7.97601948]
[1732604392435,20.0,238.73,238.68,7.97601948]
[1732604392754,0.95452737,238.77,238.7,7.97601948]
[1732604393050,0.95452737,238.77,238.67,4.1898]
[1732604393051,4.1876,238.81,238.74,7.97601948]
[1732604393250,23.52531948,238.82,238.74,7.97601948]
[1732604393560,7.97601948,238.82,238.74,12.16461948]
[1732604394052,12.16321948,238.82,238.74,7.97601948]
[1732604394226,20.0,238.79,238.74,7.97601948]
[1732604397357,4.1874,238.81,238.74,7.97601948]
[1732604397552,20.0,238.78,238.74,7.97601948]
[1732604399740,20.0,238.7,238.55,10.0]
[1732604400045,7.97601948,238.68,238.6,7.97601948]
[1732604400363,2.33403897,238.67,238.62,7.97601948]
[1732604400859,2.33403897,238.67,238.64,7.97601948]
[1732604401036,4.1891,238.72,238.64,7.97601948]
[1732604401241,6.45468223,238.72,238.64,7.97601948]
[1732604401440,8.72026446,238.72,238.64,7.97601948]
[1732604401637,3.908127,238.71,238.64,7.97601948]
[1732604402362,11.88414648,238.71,238.64,7.97601948]
[1732604402666,7.97601948,238.65,238.55,20.3179]
[1732604402854,7.97601948,238.63,238.55,20.3179]
[1732604403173,7.97601948,238.61,238.55,16.1261]
[1732604403380,101.90407792,238.68,238.47,10.0]
[1732604403381,27.97601948,238.56,238.47,16.1261]
[1732604403664,27.97601948,238.56,238.4,10.0]
[1732604403665,20.0,238.46,238.4,26.5061]
[1732604403841,7.97601948,238.49,238.4,26.5061]
[1732604404049,4.1921,238.54,238.41,7.97601948]
[1732604404242,20.0,238.5,238.41,7.97601948]
[1732604404567,20.0,238.5,238.42,7.97601948]
[1732604404767,20.0,238.49,238.44,7.97601948]
[1732604404971,7.97601948,238.52,238.44,7.97601948]
[1732604405148,20.0,238.51,238.45,7.97601948]
[1732604405350,4.1921,238.54,238.45,7.97601948]
[1732604405558,20.0,238.51,238.47,7.97601948]
[1732604405871,12.16791948,238.56,238.47,7.97601948]
[1732604405872,20.0,238.52,238.47,7.97601948]
[1732604406164,20.0,238.52,238.43,4.194]
[1732604406374,20.0,238.52,238.46,7.97601948]
[1732604406540,7.97601948,238.5,238.4,22.3116]
[1732604406736,7.97601948,238.48,238.4,22.3116]
[1732604406955,6.16894546,238.47,238.4,16.1261]
[1732604407369,6.16894546,238.47,238.39,7.97601948]
[1732604408570,7.97601948,238.46,238.35,26.507]
[1732604408757,7.97601948,238.44,238.36,7.97601948]
[1732604408953,7.97601948,238.41,238.35,16.1261]
[1732604409270,7.97601948,238.41,238.3,4.1962]
[1732604409772,14.14496494,238.41,238.32,7.97601948]
[1732604409948,20.0,238.38,238.32,7.97601948]
[1732604411454,20.0,238.38,238.3,4.1962]
[1732604411663,20.0,238.38,238.32,7.97601948]
[1732604412355,7.97601948,238.37,238.29,30.28761948]
[1732604412554,14.14496494,238.37,238.29,24.10211948]
[1732604412872,14.14496494,238.37,238.27,4.1968]
[1732604413072,14.14496494,238.37,238.29,7.97601948]
[1732604414468,14.14496494,238.37,238.24,16.1261]
[1732604414775,14.14496494,238.37,238.29,7.97601948]
[1732604414954,18.34016494,238.37,238.29,7.97601948]
[1732604415158,10.36414546,238.37,238.31,7.97601948]
[1732604415355,10.36414546,238.37,238.25,4.1972]
[1732604415356,20.0,238.38,238.36,7.97601948]
[1732604415578,20.0,238.39,238.36,7.97601948]
[1732604415755,20.0,238.42,238.36,7.97601948]
[1732604415953,27.97601948,238.43,238.36,7.97601948]
[1732604416252,20.0,238.4,238.36,7.97601948]
[1732604416469,20.0,238.42,238.34,7.97601948]
[1732604416470,20.0,238.38,238.34,7.97601948]
[1732604420073,20.0,238.36,238.27,4.1967]
[1732604420283,20.0,238.36,238.32,7.97601948]
[1732604420677,20.0,238.36,238.33,7.97601948]
[1732604420867,20.0,238.36,238.34,7.97601948]
[1732604421270,20.0,238.36,238.33,7.97601948]
[1732604421678,20.0,238.36,238.34,7.97601948]
[1732604422496,20.0,238.36,238.25,4.1972]
[1732604422497,140.7932,238.48,238.35,7.97601948]
[1732604422686,4.1932,238.48,238.42,7.97601948]
[1732604422878,4.1932,238.48,238.32,10.0]
[1732604422879,12.16921948,238.48,238.4,7.97601948]
[1732604423198,7.97601948,238.45,238.38,7.97601948]
[1732604423569,12.17011948,238.43,238.31,4.1961]
[1732604423875,20.0,238.4,238.35,7.97601948]
[1732604424075,20.0,238.41,238.35,7.97601948]
[1732604424299,20.0,238.39,238.35,7.97601948]
[1732604425476,20.0,238.39,238.36,7.97601948]
[1732604425699,20.0,238.4,238.35,7.97601948]
[1732604425898,20.0,238.39,238.35,7.97601948]
[1732604426297,20.0,238.39,238.3,19.6221]
[1732604426576,20.0,238.39,238.33,7.97601948]
[1732604426772,24.1947,238.4,238.33,7.97601948]
[1732604426976,32.17071948,238.4,238.33,7.97601948]
[1732604427581,38.27597197,238.4,238.3,15.4258]
[1732604427910,38.27597197,238.4,238.32,7.97601948]
[1732604428408,7.97601948,238.39,238.32,7.97601948]
[1732604428598,20.0,238.36,238.32,7.97601948]
[1732604429111,20.0,238.37,238.3,15.4258]
[1732604429412,136.6,238.43,238.35,7.97601948]
[1732604429611,7.97601948,238.47,238.4,7.97601948]
[1732604429902,4.1934,238.47,238.4,7.97601948]
[1732604430110,4.1934,238.47,238.31,4.82532914]
[1732604430294,4.1934,238.47,238.41,7.97601948]
[1732604431007,4.1934,238.47,238.36,4.1952]
[1732604431008,20.0,238.46,238.36,4.1952]
[1732604431310,20.0,238.44,238.4,7.97601948]
[1732604431603,20.0,238.44,238.33,4.1958]
[1732604431810,4.1934,238.47,238.4,7.97601948]
[1732604432015,20.0,238.44,238.4,7.97601948]
[1732604432386,6.10525249,238.47,238.42,7.97601948]
[1732604432619,4.1931,238.49,238.42,7.97601948]
[1732604433894,20.0,238.47,238.42,7.97601948]
[1732604434713,24.1934,238.47,238.42,7.97601948]
[1732604434886,20.0,238.46,238.42,7.97601948]
[1732604436187,20.0,238.46,238.4,23.91191948]
[1732604436392,12.16941948,238.47,238.4,15.9359]
[1732604436590,12.16941948,238.47,238.35,4.1954]
[1732604436789,7.97601948,238.45,238.37,7.97601948]
[1732604437010,20.0,238.4,238.34,23.91191948]
[1732604437391,20.0,238.4,238.32,7.97601948]
[1732604438118,7.97601948,238.39,238.32,7.97601948]
[1732604438618,4.1949,238.38,238.32,7.97601948]
[1732604439186,4.1949,238.38,238.29,15.9359]
[1732604439399,4.1949,238.38,238.3,7.97601948]
[1732604439400,7.97601948,238.37,238.3,7.97601948]
[1732604440812,7.97601948,238.37,238.29,15.9359]
[1732604440813,20.0,238.3,238.19,4.1983]
[1732604440996,14.6836,238.36,238.19,4.1983]
[1732604440997,4.1953,238.36,238.27,7.97601948]
[1732604441201,20.0,238.34,238.27,7.97601948]
[1732604443301,4.1953,238.37,238.31,7.97601948]
[1732604443911,7.97601948,238.42,238.33,7.97601948]
[1732604444093,4.1945,238.41,238.33,7.97601948]
[1732604445330,7.97601948,238.4,238.33,7.97601948]
[1732604445536,7.97601948,238.4,238.31,7.97601948]
[1732604445713,7.97601948,238.38,238.29,23.91191948]
[1732604446032,7.97601948,238.38,238.31,7.97601948]
[1732604446230,4.1951,238.37,238.31,7.97601948]
[1732604446398,20.0,238.35,238.31,7.97601948]
[1732604446601,20.0,238.35,238.29,15.9359]
[1732604447709,20.0,238.33,238.29,15.9359]
[1732604448115,20.0,238.33,238.22,6.2535]
[1732604448425,24.1963,238.31,238.24,7.97601948]
[1732604448627,20.0,238.3,238.24,7.97601948]
[1732604449204,7.97601948,238.29,238.22,7.97601948]
[1732604449526,20.0,238.26,238.22,7.97601948]
[1732604450338,20.0,238.26,238.21,12.50499805]
[1732604452227,20.0,238.26,238.23,12.50499805]
[1732604452533,20.0,238.28,238.23,12.50499805]
[1732604453312,20.0,238.28,238.25,12.50499805]
[1732604453636,20.0,238.29,238.25,12.50499805]
[1732604454108,24.1963,238.3,238.25,12.50499805]
[1732604454306,24.1963,238.3,238.21,4.1979]
[1732604454307,24.1963,238.3,238.24,12.50499805]
[1732604454732,20.0,238.29,238.25,12.50499805]
[1732604454903,20.0,238.29,238.24,12.50499805]
[1732604455422,20.0,238.31,238.24,12.50499805]
[1732604455622,32.50499805,238.31,238.24,12.50499805]
[1732604457615,4.1963,238.3,238.24,12.50499805]
[1732604457816,4.1963,238.3,238.22,12.50499805]
[1732604458030,12.50499805,238.27,238.18,15.615]
[1732604458214,12.50499805,238.21,238.13,28.11999805]
[1732604458542,12.50499805,238.22,238.14,12.50499805]
[1732604458914,12.50499805,238.2,238.13,15.615]
[1732604459213,12.50499805,238.22,238.14,12.50499805]
[1732604459737,25.83079812,238.26,238.13,19.8143]
[1732604459738,16.70269805,238.23,238.15,12.50499805]
[1732604460337,16.70269805,238.23,238.17,12.50499805]
[1732604460338,4.1977,238.23,238.17,12.50499805]
[1732604460521,20.0,238.21,238.17,12.50499805]
[1732604460937,20.0,238.25,238.2,12.50499805]
[1732604461418,20.0,238.25,238.19,12.50499805]
[1732604461947,20.0,238.25,238.14,4.1992]
[1732604461948,20.0,238.24,238.2,12.50499805]
[1732604462637,20.0,238.22,238.18,12.50499805]
[1732604462854,20.0,238.22,238.16,12.50499805]
[1732604463417,20.0,238.22,238.18,12.50499805]
[1732604464012,24.1978,238.22,238.18,12.50499805]
[1732604464232,24.1978,238.22,238.13,15.615]